[Event "Titled Tuesday Blitz May 31 Late 2022"]
[White "Balabayeva, Xeniya"]
[Black "Boder, Jan"]
[WhiteFideId "13719688"]
[BlackFideId "16243226"]
[WhiteElo "1941"]
[BlackElo "2064"]
[Result "1-0"]
[Round "04"]
[TimeControl "180+1"]
[Date "2022.06.01"]
[WhiteClock "0:00:03"]
[BlackClock "0:00:02"]

1. e4 {[%clk 0:03:00]}  c5 {[%clk 0:02:58]} 2. Nf3 {[%clk 0:03:00]}  g6 {[%clk 0:02:58]} 3. g3 {[%clk 0:02:50]}  Bg7 {[%clk 0:02:57]} 4. Bg2 {[%clk 0:02:50]}  Nc6 {[%clk 0:02:56]} 5. O-O {[%clk 0:02:50]}  d6 {[%clk 0:02:57]} 6. Nc3 {[%clk 0:02:49]}  h5 {[%clk 0:02:57]} 7. h4 {[%clk 0:02:47]}  Bg4 {[%clk 0:02:56]} 8. Ne2 {[%clk 0:02:39]}  e5 {[%clk 0:02:53]} 9. d3 {[%clk 0:02:37]}  Nge7 {[%clk 0:02:52]} 10. Be3 {[%clk 0:02:33]}  O-O {[%clk 0:02:50]} 11. Nh2 {[%clk 0:02:31]}  Bxe2 {[%clk 0:02:40]} 12. Qxe2 {[%clk 0:02:30]}  Nd4 {[%clk 0:02:41]} 13. Qd2 {[%clk 0:02:14]}  Rb8 {[%clk 0:02:40]} 14. c3 {[%clk 0:02:13]}  Ne6 {[%clk 0:02:40]} 15. Bh3 {[%clk 0:02:04]}  f5 {[%clk 0:02:39]} 16. exf5 {[%clk 0:01:59]}  Nxf5 {[%clk 0:02:40]} 17. Rae1 {[%clk 0:01:55]}  Qf6 {[%clk 0:02:10]} 18. Nf3 {[%clk 0:01:31]}  Nxe3 {[%clk 0:02:03]} 19. fxe3 {[%clk 0:01:29]}  Qe7 {[%clk 0:01:48]} 20. Qg2 {[%clk 0:01:19]}  Bh6 {[%clk 0:01:45]} 21. g4 {[%clk 0:01:09]}  Kh7 {[%clk 0:01:40]} 22. g5 {[%clk 0:01:05]}  Bg7 {[%clk 0:01:36]} 23. Nd2 {[%clk 0:01:04]}  Nc7 {[%clk 0:01:11]} 24. c4 {[%clk 0:01:01]}  b5 {[%clk 0:01:08]} 25. b3 {[%clk 0:00:54]}  bxc4 {[%clk 0:01:07]} 26. dxc4 {[%clk 0:00:53]}  Rbe8 {[%clk 0:00:34]} 27. Qc6 {[%clk 0:00:41]}  e4 {[%clk 0:00:25]} 28. Rxf8 {[%clk 0:00:32]}  Bxf8 {[%clk 0:00:26]} 29. Rf1 {[%clk 0:00:31]}  Bg7 {[%clk 0:00:24]} 30. Rf4 {[%clk 0:00:20]}  Qe5 {[%clk 0:00:22]} 31. Nxe4 {[%clk 0:00:16]}  Re7 {[%clk 0:00:13]} 32. Qxd6 {[%clk 0:00:10]}  Qxd6 {[%clk 0:00:04]} 33. Nxd6 {[%clk 0:00:10]}  Rxe3 {[%clk 0:00:05]} 34. Rf7 {[%clk 0:00:09]}  Rxh3 {[%clk 0:00:04]} 35. Rxc7 {[%clk 0:00:08]}  Kg8 {[%clk 0:00:03]} 36. Ne8 {[%clk 0:00:08]}  Bd4+ {[%clk 0:00:02]} 37. Kg2 {[%clk 0:00:07]}  Rxh4 {[%clk 0:00:03]} 38. Nf6+ {[%clk 0:00:06]}  Bxf6 {[%clk 0:00:01]} 39. gxf6 {[%clk 0:00:06]}  Rf4 {[%clk 0:00:02]} 40. Rg7+ {[%clk 0:00:06]}  Kf8 {[%clk 0:00:01]} 41. Rxg6 {[%clk 0:00:06]}  Rf5 {[%clk 0:00:01]} 42. Rh6 {[%clk 0:00:06]}  Kf7 {[%clk 0:00:02]} 43. Rh7+ {[%clk 0:00:05]}  Kxf6 {[%clk 0:00:02]} 44. Rxa7 {[%clk 0:00:06]}  Ke5 {[%clk 0:00:02]} 45. Rd7 {[%clk 0:00:06]}  Ke4 {[%clk 0:00:02]} 46. Kg3 {[%clk 0:00:05]}  h4+ {[%clk 0:00:01]} 47. Kh3 {[%clk 0:00:05]}  Rf2 {[%clk 0:00:01]} 48. Rd5 {[%clk 0:00:03]}  Rxa2 {[%clk 0:00:01]} 49. Rxc5 {[%clk 0:00:03]}  Rb2 {[%clk 0:00:02]} 50. Rb5 {[%clk 0:00:03]} 1-0


[Site "https://www.chess.com"]

[Event "Titled Tuesday Blitz May 31 Late 2022"]
[White "Barria Zuniga, Daniel"]
[Black "Demchenko, Anton"]
[WhiteFideId "3400816"]
[BlackFideId "4160258"]
[WhiteElo "2414"]
[BlackElo "2539"]
[Result "0-1"]
[Round "04"]
[TimeControl "180+1"]
[Date "2022.05.31"]
[WhiteClock "0:00:13"]
[BlackClock "0:00:14"]

1. d4 {[%clk 0:01:27]}  Nf6 {[%clk 0:02:57]} 2. c4 {[%clk 0:01:27]}  g6 {[%clk 0:02:57]} 3. Nc3 {[%clk 0:01:26]}  Bg7 {[%clk 0:02:57]} 4. e4 {[%clk 0:01:26]}  d6 {[%clk 0:02:58]} 5. Be2 {[%clk 0:01:27]}  O-O {[%clk 0:02:57]} 6. Nf3 {[%clk 0:01:27]}  e5 {[%clk 0:02:55]} 7. d5 {[%clk 0:01:27]}  a5 {[%clk 0:02:55]} 8. Bg5 {[%clk 0:01:28]}  Na6 {[%clk 0:02:55]} 9. Nd2 {[%clk 0:01:27]}  Nc5 {[%clk 0:02:54]} 10. O-O {[%clk 0:01:26]}  b6 {[%clk 0:02:49]} 11. Qc2 {[%clk 0:01:15]}  h6 {[%clk 0:02:37]} 12. Bh4 {[%clk 0:01:14]}  Qe8 {[%clk 0:02:24]} 13. b3 {[%clk 0:01:11]}  Nh7 {[%clk 0:02:20]} 14. a3 {[%clk 0:01:09]}  f5 {[%clk 0:02:18]} 15. f3 {[%clk 0:01:09]}  Bf6 {[%clk 0:02:10]} 16. Bf2 {[%clk 0:01:08]}  Bg5 {[%clk 0:02:11]} 17. Rab1 {[%clk 0:01:04]}  Nf6 {[%clk 0:02:03]} 18. b4 {[%clk 0:01:04]}  axb4 {[%clk 0:01:44]} 19. axb4 {[%clk 0:01:05]}  fxe4 {[%clk 0:01:29]} 20. Ndxe4 {[%clk 0:00:29]}  Ncxe4 {[%clk 0:01:27]} 21. Nxe4 {[%clk 0:00:27]}  Bf5 {[%clk 0:01:17]} 22. Bd3 {[%clk 0:00:22]}  Bxe4 {[%clk 0:01:17]} 23. Bxe4 {[%clk 0:00:21]}  Nxe4 {[%clk 0:01:17]} 24. fxe4 {[%clk 0:00:20]}  Qa4 {[%clk 0:01:06]} 25. Qe2 {[%clk 0:00:18]}  Qa2 {[%clk 0:01:00]} 26. Qg4 {[%clk 0:00:17]}  Rxf2 {[%clk 0:00:54]} 27. h4 {[%clk 0:00:15]}  Be3 {[%clk 0:00:16]} 28. Qxg6+ {[%clk 0:00:15]}  Kh8 {[%clk 0:00:17]} 29. Kh1 {[%clk 0:00:15]}  Rg8 {[%clk 0:00:15]} 30. Qf6+ {[%clk 0:00:13]}  Rxf6 {[%clk 0:00:14]} 0-1


[Site "https://www.chess.com"]

[Event "Titled Tuesday Blitz May 31 Late 2022"]
[White "Bazeev, German"]
[Black "Sarana, Alexey"]
[WhiteFideId "24119350"]
[BlackFideId "24133795"]
[WhiteElo "2493"]
[BlackElo "2666"]
[Result "1-0"]
[Round "04"]
[TimeControl "180+1"]
[Date "2022.05.31"]
[WhiteClock "0:01:08"]
[BlackClock "0:01:05"]

1. d4 {[%clk 0:03:00]}  Nf6 {[%clk 0:03:00]} 2. Nf3 {[%clk 0:03:00]}  e6 {[%clk 0:03:01]} 3. c3 {[%clk 0:03:00]}  b6 {[%clk 0:03:00]} 4. Bg5 {[%clk 0:03:00]}  Bb7 {[%clk 0:03:01]} 5. Nbd2 {[%clk 0:03:01]}  Be7 {[%clk 0:03:00]} 6. e3 {[%clk 0:03:01]}  d6 {[%clk 0:03:00]} 7. Bd3 {[%clk 0:03:01]}  Nbd7 {[%clk 0:03:00]} 8. Qe2 {[%clk 0:03:02]}  h6 {[%clk 0:02:59]} 9. Bh4 {[%clk 0:03:02]}  g5 {[%clk 0:02:59]} 10. Bg3 {[%clk 0:03:02]}  Nh5 {[%clk 0:03:00]} 11. Ba6 {[%clk 0:02:56]}  Qc8 {[%clk 0:02:52]} 12. Bxb7 {[%clk 0:02:50]}  Qxb7 {[%clk 0:02:53]} 13. e4 {[%clk 0:02:49]}  Ndf6 {[%clk 0:02:46]} 14. O-O-O {[%clk 0:02:42]}  O-O-O {[%clk 0:02:45]} 15. Rhe1 {[%clk 0:02:40]}  Kb8 {[%clk 0:02:38]} 16. Ng1 {[%clk 0:02:37]}  Nxg3 {[%clk 0:02:37]} 17. hxg3 {[%clk 0:02:38]}  h5 {[%clk 0:02:26]} 18. Nh3 {[%clk 0:02:36]}  Rdg8 {[%clk 0:02:25]} 19. Rh1 {[%clk 0:02:20]}  Qc6 {[%clk 0:02:23]} 20. Rde1 {[%clk 0:02:19]}  Kb7 {[%clk 0:02:13]} 21. Kb1 {[%clk 0:02:17]}  Rh7 {[%clk 0:02:12]} 22. a3 {[%clk 0:02:13]}  h4 {[%clk 0:02:08]} 23. g4 {[%clk 0:02:12]}  a6 {[%clk 0:02:06]} 24. f3 {[%clk 0:02:12]}  Qb5 {[%clk 0:02:06]} 25. c4 {[%clk 0:02:03]}  Qa4 {[%clk 0:02:05]} 26. Nf2 {[%clk 0:02:01]}  Nd7 {[%clk 0:02:04]} 27. Qd3 {[%clk 0:01:59]}  Bf6 {[%clk 0:02:01]} 28. e5 {[%clk 0:01:57]}  dxe5 {[%clk 0:01:59]} 29. Qxh7 {[%clk 0:01:57]}  Rg7 {[%clk 0:01:53]} 30. Qc2 {[%clk 0:01:57]}  Qxc2+ {[%clk 0:01:51]} 31. Kxc2 {[%clk 0:01:58]}  exd4 {[%clk 0:01:51]} 32. Nd3 {[%clk 0:01:57]}  c5 {[%clk 0:01:51]} 33. g3 {[%clk 0:01:55]}  Be7 {[%clk 0:01:48]} 34. Rh3 {[%clk 0:01:44]}  f5 {[%clk 0:01:33]} 35. Rxe6 {[%clk 0:01:42]}  Bd8 {[%clk 0:01:29]} 36. gxf5 {[%clk 0:01:40]}  hxg3 {[%clk 0:01:29]} 37. Rxg3 {[%clk 0:01:38]}  Rf7 {[%clk 0:01:30]} 38. Rh3 {[%clk 0:01:24]}  Rxf5 {[%clk 0:01:20]} 39. Rh7 {[%clk 0:01:23]}  Kc8 {[%clk 0:01:20]} 40. Re8 {[%clk 0:01:16]}  Rf8 {[%clk 0:01:15]} 41. Rxf8 {[%clk 0:01:13]}  Nxf8 {[%clk 0:01:15]} 42. Rf7 {[%clk 0:01:14]}  Ng6 {[%clk 0:01:13]} 43. Ne4 {[%clk 0:01:13]}  Be7 {[%clk 0:01:11]} 44. b4 {[%clk 0:01:10]}  cxb4 {[%clk 0:01:09]} 45. Rg7 {[%clk 0:01:09]}  bxa3 {[%clk 0:01:05]} 46. Rxg6 {[%clk 0:01:08]}  a2 {[%clk 0:01:05]} 47. Kb2 {[%clk 0:01:08]} 1-0


[Site "https://www.chess.com"]

[Event "Titled Tuesday Blitz May 31 Late 2022"]
[White "Bortnyk, Olexandr"]
[Black "Donchenko, Alexander"]
[WhiteFideId "14120828"]
[BlackFideId "24603295"]
[WhiteElo "2723"]
[BlackElo "2572"]
[Result "1-0"]
[Round "04"]
[TimeControl "180+1"]
[Date "2022.05.31"]
[WhiteClock "0:00:06"]
[BlackClock "0:00:02"]

1. d4 {[%clk 0:03:00]}  Nf6 {[%clk 0:02:59]} 2. Nc3 {[%clk 0:03:01]}  d5 {[%clk 0:02:59]} 3. Bf4 {[%clk 0:03:00]}  c5 {[%clk 0:02:59]} 4. e4 {[%clk 0:03:01]}  dxe4 {[%clk 0:02:57]} 5. dxc5 {[%clk 0:02:59]}  Qxd1+ {[%clk 0:02:47]} 6. Rxd1 {[%clk 0:03:00]}  a6 {[%clk 0:02:48]} 7. Na4 {[%clk 0:02:40]}  Nbd7 {[%clk 0:02:45]} 8. Bc7 {[%clk 0:02:40]}  e6 {[%clk 0:02:30]} 9. Nb6 {[%clk 0:02:39]}  Nxb6 {[%clk 0:02:30]} 10. Rd8+ {[%clk 0:02:40]}  Ke7 {[%clk 0:02:30]} 11. cxb6 {[%clk 0:02:39]}  Nd5 {[%clk 0:02:29]} 12. Ne2 {[%clk 0:02:13]}  g6 {[%clk 0:02:27]} 13. Nc3 {[%clk 0:01:53]}  Nxc3 {[%clk 0:02:23]} 14. bxc3 {[%clk 0:01:54]}  Bg7 {[%clk 0:02:23]} 15. Rxh8 {[%clk 0:01:52]}  Bxc3+ {[%clk 0:02:23]} 16. Ke2 {[%clk 0:01:53]}  Bxh8 {[%clk 0:02:24]} 17. Ke3 {[%clk 0:01:54]}  f5 {[%clk 0:02:20]} 18. Bc4 {[%clk 0:01:51]}  Bd7 {[%clk 0:02:14]} 19. Rd1 {[%clk 0:01:52]}  Bc3 {[%clk 0:01:52]} 20. g4 {[%clk 0:01:48]}  Bb4 {[%clk 0:01:46]} 21. Kf4 {[%clk 0:01:45]}  h6 {[%clk 0:01:40]} 22. g5 {[%clk 0:01:35]}  h5 {[%clk 0:01:35]} 23. h4 {[%clk 0:01:14]}  Bb5 {[%clk 0:01:33]} 24. Bb3 {[%clk 0:01:00]}  Rc8 {[%clk 0:01:20]} 25. a4 {[%clk 0:00:58]}  Bc6 {[%clk 0:01:18]} 26. Kg3 {[%clk 0:00:52]}  Ba5 {[%clk 0:01:04]} 27. Bd6+ {[%clk 0:00:26]}  Kf7 {[%clk 0:01:03]} 28. Bc7 {[%clk 0:00:27]}  Rxc7 {[%clk 0:01:01]} 29. bxc7 {[%clk 0:00:28]}  Bxc7+ {[%clk 0:01:02]} 30. Kg2 {[%clk 0:00:27]}  Ke7 {[%clk 0:01:00]} 31. Kf1 {[%clk 0:00:25]}  a5 {[%clk 0:00:58]} 32. Rb1 {[%clk 0:00:23]}  b6 {[%clk 0:00:51]} 33. Rd1 {[%clk 0:00:20]}  Be5 {[%clk 0:00:48]} 34. Rb1 {[%clk 0:00:20]}  Bd4 {[%clk 0:00:47]} 35. Rd1 {[%clk 0:00:20]}  Bc5 {[%clk 0:00:48]} 36. c3 {[%clk 0:00:21]}  f4 {[%clk 0:00:39]} 37. Bc2 {[%clk 0:00:19]}  Kf7 {[%clk 0:00:30]} 38. Re1 {[%clk 0:00:15]}  e3 {[%clk 0:00:29]} 39. fxe3 {[%clk 0:00:16]}  Bxe3 {[%clk 0:00:30]} 40. Rd1 {[%clk 0:00:15]}  f3 {[%clk 0:00:14]} 41. Re1 {[%clk 0:00:12]}  Bd2 {[%clk 0:00:11]} 42. Bxg6+ {[%clk 0:00:13]}  Ke7 {[%clk 0:00:10]} 43. Rd1 {[%clk 0:00:13]}  Bf4 {[%clk 0:00:05]} 44. Bxh5 {[%clk 0:00:09]}  Bxa4 {[%clk 0:00:05]} 45. Rd4 {[%clk 0:00:07]}  Bb5+ {[%clk 0:00:05]} 46. c4 {[%clk 0:00:07]}  Be3 {[%clk 0:00:02]} 47. Re4 {[%clk 0:00:06]}  a4 {[%clk 0:00:02]} 48. cxb5 {[%clk 0:00:06]}  Bc5 {[%clk 0:00:02]} 49. Rxa4 {[%clk 0:00:06]} 1-0


[Site "https://www.chess.com"]

[Event "Titled Tuesday Blitz May 31 Late 2022"]
[White "Buchenau, Frank"]
[Black "Tregubov, Pavel V."]
[WhiteFideId "4604350"]
[BlackFideId "4115341"]
[WhiteElo "2157"]
[BlackElo "2341"]
[Result "1/2-1/2"]
[Round "04"]
[TimeControl "180+1"]
[Date "2022.06.01"]
[WhiteClock "0:00:11"]
[BlackClock "0:00:06"]

1. e4 {[%clk 0:03:00]}  e5 {[%clk 0:02:58]} 2. Bc4 {[%clk 0:03:00]}  Nf6 {[%clk 0:02:56]} 3. d3 {[%clk 0:03:00]}  c6 {[%clk 0:02:55]} 4. Nf3 {[%clk 0:03:00]}  d5 {[%clk 0:02:55]} 5. Bb3 {[%clk 0:03:01]}  Bb4+ {[%clk 0:02:52]} 6. Bd2 {[%clk 0:03:00]}  Bxd2+ {[%clk 0:02:50]} 7. Nbxd2 {[%clk 0:03:01]}  O-O {[%clk 0:02:39]} 8. O-O {[%clk 0:03:01]}  Nbd7 {[%clk 0:02:31]} 9. Re1 {[%clk 0:03:01]}  Re8 {[%clk 0:02:28]} 10. d4 {[%clk 0:03:01]}  Qc7 {[%clk 0:02:06]} 11. exd5 {[%clk 0:02:58]}  cxd5 {[%clk 0:02:05]} 12. Nxe5 {[%clk 0:02:56]}  Nxe5 {[%clk 0:02:05]} 13. dxe5 {[%clk 0:02:55]}  Rxe5 {[%clk 0:02:05]} 14. Nf3 {[%clk 0:02:43]}  Rxe1+ {[%clk 0:01:39]} 15. Qxe1 {[%clk 0:02:44]}  Bf5 {[%clk 0:01:39]} 16. Qe5 {[%clk 0:02:41]}  Qxe5 {[%clk 0:01:24]} 17. Nxe5 {[%clk 0:02:42]}  Re8 {[%clk 0:01:24]} 18. Re1 {[%clk 0:02:41]}  Kf8 {[%clk 0:01:21]} 19. Kf1 {[%clk 0:02:39]}  Ne4 {[%clk 0:01:19]} 20. Nf3 {[%clk 0:01:55]}  Bg4 {[%clk 0:01:19]} 21. Rd1 {[%clk 0:01:40]}  Ng5 {[%clk 0:00:39]} 22. Bxd5 {[%clk 0:01:29]}  Rd8 {[%clk 0:00:39]} 23. Rd3 {[%clk 0:01:06]}  Bf5 {[%clk 0:00:21]} 24. Rd2 {[%clk 0:00:57]}  Nxf3 {[%clk 0:00:20]} 25. gxf3 {[%clk 0:00:57]}  Bxc2 {[%clk 0:00:21]} 26. Rxc2 {[%clk 0:00:45]}  Rxd5 {[%clk 0:00:20]} 27. Rc7 {[%clk 0:00:44]}  Rb5 {[%clk 0:00:20]} 28. b3 {[%clk 0:00:44]}  g5 {[%clk 0:00:20]} 29. Ke2 {[%clk 0:00:43]}  Kg7 {[%clk 0:00:20]} 30. Ke3 {[%clk 0:00:42]}  Kg6 {[%clk 0:00:20]} 31. f4 {[%clk 0:00:42]}  a6 {[%clk 0:00:19]} 32. fxg5 {[%clk 0:00:40]}  b6 {[%clk 0:00:17]} 33. f4 {[%clk 0:00:40]}  a5 {[%clk 0:00:17]} 34. Kf3 {[%clk 0:00:38]}  Rb4 {[%clk 0:00:15]} 35. Kg4 {[%clk 0:00:37]}  a4 {[%clk 0:00:15]} 36. bxa4 {[%clk 0:00:35]}  Rxa4 {[%clk 0:00:14]} 37. Rc6+ {[%clk 0:00:31]}  Kg7 {[%clk 0:00:14]} 38. Rxb6 {[%clk 0:00:30]}  Rxa2 {[%clk 0:00:15]} 39. h4 {[%clk 0:00:30]}  Rg2+ {[%clk 0:00:15]} 40. Kf5 {[%clk 0:00:30]}  Ra2 {[%clk 0:00:16]} 41. h5 {[%clk 0:00:30]}  Ra5+ {[%clk 0:00:16]} 42. Kg4 {[%clk 0:00:30]}  Ra8 {[%clk 0:00:07]} 43. Rb7 {[%clk 0:00:27]}  Kf8 {[%clk 0:00:06]} 44. h6 {[%clk 0:00:22]}  Rc8 {[%clk 0:00:05]} 45. Ra7 {[%clk 0:00:22]}  Rb8 {[%clk 0:00:05]} 46. Kf5 {[%clk 0:00:19]}  Rb5+ {[%clk 0:00:05]} 47. Ke4 {[%clk 0:00:19]}  Rb8 {[%clk 0:00:05]} 48. Ke5 {[%clk 0:00:19]}  Rb5+ {[%clk 0:00:05]} 49. Kf6 {[%clk 0:00:18]}  Rb6+ {[%clk 0:00:05]} 50. Ke5 {[%clk 0:00:18]}  Rb5+ {[%clk 0:00:06]} 51. Ke4 {[%clk 0:00:18]}  Rb4+ {[%clk 0:00:06]} 52. Kf3 {[%clk 0:00:18]}  Rb3+ {[%clk 0:00:06]} 53. Kg4 {[%clk 0:00:18]}  Rb8 {[%clk 0:00:07]} 54. Rc7 {[%clk 0:00:17]}  Ra8 {[%clk 0:00:07]} 55. f5 {[%clk 0:00:16]}  Rb8 {[%clk 0:00:07]} 56. g6 {[%clk 0:00:15]}  Rb4+ {[%clk 0:00:04]} 57. Kg5 {[%clk 0:00:15]}  fxg6 {[%clk 0:00:04]} 58. fxg6 {[%clk 0:00:14]}  Rb5+ {[%clk 0:00:05]} 59. Kf4 {[%clk 0:00:12]}  Rb4+ {[%clk 0:00:05]} 60. Ke5 {[%clk 0:00:13]}  hxg6 {[%clk 0:00:05]} 61. Kf6 {[%clk 0:00:11]}  Rb6+ {[%clk 0:00:05]} 62. Kg5 {[%clk 0:00:12]}  Kg8 {[%clk 0:00:05]} 63. Rg7+ {[%clk 0:00:10]}  Kh8 {[%clk 0:00:05]} 64. Rxg6 {[%clk 0:00:10]}  Rxg6+ {[%clk 0:00:05]} 65. Kxg6 {[%clk 0:00:10]}  Kg8 {[%clk 0:00:06]} 66. h7+ {[%clk 0:00:10]}  Kh8 {[%clk 0:00:06]} 67. Kh6 {[%clk 0:00:11]} 1/2-1/2


[Site "https://www.chess.com"]

[Event "Titled Tuesday Blitz May 31 Late 2022"]
[White "Estrada Nieto, Julian"]
[Black "Sanchez, Robert"]
[WhiteFideId "5101018"]
[BlackFideId "2034360"]
[WhiteElo "2252"]
[BlackElo "2299"]
[Result "0-1"]
[Round "04"]
[TimeControl "180+1"]
[Date "2022.06.01"]
[WhiteClock "0:00:01"]
[BlackClock "0:00:07"]

1. e4 {[%clk 0:03:00]}  e6 {[%clk 0:03:00]} 2. d4 {[%clk 0:03:00]}  d5 {[%clk 0:03:00]} 3. Nd2 {[%clk 0:03:00]}  Nf6 {[%clk 0:03:00]} 4. e5 {[%clk 0:03:00]}  Nfd7 {[%clk 0:03:01]} 5. Bd3 {[%clk 0:03:01]}  c5 {[%clk 0:03:01]} 6. c3 {[%clk 0:03:01]}  Nc6 {[%clk 0:03:02]} 7. Ne2 {[%clk 0:03:02]}  cxd4 {[%clk 0:03:02]} 8. cxd4 {[%clk 0:03:02]}  f6 {[%clk 0:03:03]} 9. exf6 {[%clk 0:03:03]}  Nxf6 {[%clk 0:03:03]} 10. Nf3 {[%clk 0:03:03]}  Bd6 {[%clk 0:03:04]} 11. O-O {[%clk 0:03:04]}  Qc7 {[%clk 0:03:04]} 12. Bg5 {[%clk 0:03:03]}  O-O {[%clk 0:03:04]} 13. Bh4 {[%clk 0:03:04]}  Nh5 {[%clk 0:03:04]} 14. Qc2 {[%clk 0:03:03]}  h6 {[%clk 0:03:04]} 15. Bh7+ {[%clk 0:02:59]}  Kh8 {[%clk 0:03:04]} 16. Bg6 {[%clk 0:03:00]}  Rxf3 {[%clk 0:03:04]} 17. gxf3 {[%clk 0:02:58]}  Bxh2+ {[%clk 0:02:59]} 18. Kg2 {[%clk 0:02:59]}  Nf4+ {[%clk 0:02:48]} 19. Nxf4 {[%clk 0:02:58]}  Bxf4 {[%clk 0:02:45]} 20. Bg3 {[%clk 0:02:57]}  Bd7 {[%clk 0:02:43]} 21. Rh1 {[%clk 0:02:56]}  Rf8 {[%clk 0:02:40]} 22. Rh4 {[%clk 0:02:49]}  Bxg3 {[%clk 0:02:38]} 23. fxg3 {[%clk 0:02:42]}  Qb6 {[%clk 0:02:33]} 24. Qd2 {[%clk 0:02:38]}  Rf6 {[%clk 0:02:06]} 25. Bc2 {[%clk 0:01:56]}  Nb4 {[%clk 0:01:42]} 26. Rah1 {[%clk 0:01:53]}  Nxc2 {[%clk 0:01:41]} 27. Qxc2 {[%clk 0:01:50]}  Qd6 {[%clk 0:01:22]} 28. Qd2 {[%clk 0:01:36]}  e5 {[%clk 0:01:18]} 29. dxe5 {[%clk 0:01:31]}  Qxe5 {[%clk 0:01:18]} 30. Re1 {[%clk 0:01:30]}  Qf5 {[%clk 0:01:13]} 31. Qf2 {[%clk 0:01:08]}  d4 {[%clk 0:01:09]} 32. Rxd4 {[%clk 0:01:03]}  Qh3+ {[%clk 0:01:09]} 33. Kg1 {[%clk 0:01:03]}  Rg6 {[%clk 0:00:58]} 34. g4 {[%clk 0:00:57]}  Bc6 {[%clk 0:00:48]} 35. Qg2 {[%clk 0:00:45]}  Qh4 {[%clk 0:00:46]} 36. Qf2 {[%clk 0:00:33]}  Qh3 {[%clk 0:00:41]} 37. Re3 {[%clk 0:00:27]}  h5 {[%clk 0:00:38]} 38. Qh2 {[%clk 0:00:20]}  hxg4 {[%clk 0:00:32]} 39. Qxh3+ {[%clk 0:00:18]}  gxh3+ {[%clk 0:00:32]} 40. Kh2 {[%clk 0:00:18]}  Rg2+ {[%clk 0:00:32]} 41. Kxh3 {[%clk 0:00:18]}  Rxb2 {[%clk 0:00:33]} 42. Rd8+ {[%clk 0:00:15]}  Kh7 {[%clk 0:00:33]} 43. Re5 {[%clk 0:00:15]}  Rxa2 {[%clk 0:00:31]} 44. f4 {[%clk 0:00:15]}  Rf2 {[%clk 0:00:27]} 45. Kg3 {[%clk 0:00:13]}  Rg2+ {[%clk 0:00:22]} 46. Kh3 {[%clk 0:00:13]}  a5 {[%clk 0:00:21]} 47. Re6 {[%clk 0:00:12]}  Rf2 {[%clk 0:00:20]} 48. Kg3 {[%clk 0:00:11]}  Rf3+ {[%clk 0:00:21]} 49. Kg4 {[%clk 0:00:12]}  Rf1 {[%clk 0:00:21]} 50. f5 {[%clk 0:00:11]}  a4 {[%clk 0:00:20]} 51. Re7 {[%clk 0:00:08]}  a3 {[%clk 0:00:16]} 52. Ra8 {[%clk 0:00:07]}  Rf3 {[%clk 0:00:14]} 53. Rc7 {[%clk 0:00:06]}  Rc3 {[%clk 0:00:13]} 54. Rcc8 {[%clk 0:00:06]}  Bf3+ {[%clk 0:00:11]} 55. Kg5 {[%clk 0:00:06]}  Rxc8 {[%clk 0:00:12]} 56. Rxc8 {[%clk 0:00:06]}  b5 {[%clk 0:00:11]} 57. Rc1 {[%clk 0:00:05]}  b4 {[%clk 0:00:10]} 58. f6 {[%clk 0:00:06]}  gxf6+ {[%clk 0:00:10]} 59. Kxf6 {[%clk 0:00:06]}  a2 {[%clk 0:00:08]} 60. Rc7+ {[%clk 0:00:06]}  Kg8 {[%clk 0:00:08]} 61. Ra7 {[%clk 0:00:06]}  b3 {[%clk 0:00:08]} 62. Kg6 {[%clk 0:00:06]}  b2 {[%clk 0:00:08]} 63. Rxa2 {[%clk 0:00:04]}  b1=Q+ {[%clk 0:00:07]} 64. Kg5 {[%clk 0:00:01]}  Qxa2 {[%clk 0:00:07]} 0-1


[Site "https://www.chess.com"]